bitfinex-derivatives/quotes_BTCF0:USTF0_20250504
["timestamp","ask_amount","ask_price","bid_price","bid_amount"]
[1746382313815,0.0319,95394.0,95393.0,0.2096485]
[1746382314107,0.0319,95394.0,95393.0,0.4896485]
[1746382315210,0.2445463,95394.0,95393.0,0.4896485]
[1746382316312,0.2754463,95394.0,95393.0,0.4896485]
[1746382316613,0.0658,95394.0,95393.0,0.4896485]
[1746382317105,0.0678,95394.0,95393.0,0.4896485]
[1746382317613,0.2774463,95394.0,95393.0,0.4896485]
[1746382322114,0.6382463,95394.0,95393.0,0.4896485]
[1746382322514,0.2774463,95394.0,95393.0,0.4896485]
[1746382322817,0.6382463,95394.0,95393.0,0.4896485]
[1746382323819,0.2774463,95394.0,95393.0,0.4896485]
[1746382324022,0.6382463,95394.0,95393.0,0.4896485]
[1746382324525,0.4286,95394.0,95393.0,0.4896485]
[1746382324710,0.3977,95394.0,95393.0,0.4896485]
[1746382324903,0.0369,95394.0,95393.0,0.4896485]
[1746382325104,0.0369,95394.0,95393.0,0.6076485]
[1746382330519,0.0369,95394.0,95393.0,0.398]
[1746382330722,0.0369,95394.0,95393.0,0.6076485]
[1746382331015,0.0369,95394.0,95393.0,1.0376485]
[1746382331412,0.0369,95394.0,95393.0,1.0687485]
[1746382331612,0.0369,95394.0,95393.0,1.1009485]
[1746382336218,0.0369,95394.0,95393.0,0.9829485]
[1746382337127,0.0369,95394.0,95393.0,1.1009485]
[1746382338325,0.0369,95394.0,95393.0,0.9829485]
[1746382339110,0.0369,95394.0,95393.0,1.1009485]
[1746382340026,0.0369,95394.0,95393.0,0.6909485]
[1746382340211,0.0369,95394.0,95393.0,0.5729485]
[1746382345918,0.0369,95394.0,95393.0,0.9829485]
[1746382350731,0.0369,95394.0,95393.0,0.9518485]
[1746382351429,0.0679,95394.0,95393.0,0.9518485]
[1746382354636,0.005,95394.0,95393.0,0.9518485]
[1746382354833,0.005,95394.0,95393.0,0.9832485]
[1746382355336,0.005,95394.0,95393.0,1.1012485]
[1746382356530,0.005,95394.0,95393.0,1.146644]
[1746382358637,0.0369,95394.0,95393.0,1.146644]
[1746382360832,0.0369,95394.0,95393.0,0.686644]
[1746382361041,0.0369,95394.0,95393.0,0.695244]
[1746382361427,0.0369,95394.0,95393.0,0.655244]
[1746382361632,0.0369,95394.0,95393.0,1.115244]
[1746382362341,0.0369,95394.0,95393.0,0.997244]
[1746382363637,0.6073463,95394.0,95393.0,0.505044]
[1746382363942,0.209666,95385.0,95384.0,0.62321868]
[1746382364143,0.337666,95385.0,95384.0,0.63321868]
[1746382364835,0.698466,95385.0,95384.0,0.63321868]
[1746382365041,0.698466,95385.0,95384.0,0.62321868]
[1746382365540,0.699466,95385.0,95384.0,0.62321868]
[1746382366129,0.699466,95385.0,95384.0,0.21351868]
[1746382367340,0.699466,95385.0,95383.0,0.2096692]
[1746382367341,0.2096682,95384.0,95383.0,0.2096692]
[1746382367542,0.3231682,95384.0,95383.0,0.2096692]
[1746382368235,0.4411682,95384.0,95383.0,0.2096692]
[1746382368949,0.4431682,95384.0,95383.0,0.2096692]
[1746382369442,0.8039682,95384.0,95383.0,0.2096692]
[1746382369644,0.262101,95380.0,95379.0,0.2096787]
[1746382369842,0.262101,95380.0,95379.0,0.2596787]
[1746382370232,0.380101,95380.0,95379.0,0.2596787]
[1746382370437,0.410401,95380.0,95379.0,0.2596787]
[1746382370840,0.440401,95380.0,95379.0,0.2596787]
[1746382371441,0.443401,95380.0,95379.0,0.2596787]
[1746382378254,0.443401,95380.0,95379.0,0.05]
[1746382378552,0.443401,95380.0,95379.0,0.2596792]
[1746382388054,0.804201,95380.0,95379.0,0.2596792]
[1746382391663,0.804201,95380.0,95379.0,0.2796792]
[1746382398068,0.686201,95380.0,95379.0,0.2796792]
[1746382400370,0.804201,95380.0,95379.0,0.2796792]
[1746382400762,0.804201,95380.0,95379.0,0.3103792]
[1746382400964,0.804201,95380.0,95379.0,0.3408792]
[1746382401273,0.686201,95380.0,95379.0,0.3408792]
[1746382401869,0.325401,95380.0,95379.0,0.3408792]
[1746382402060,0.804201,95380.0,95379.0,0.3408792]
[1746382403165,0.686201,95380.0,95379.0,0.3408792]
[1746382406075,0.804201,95380.0,95379.0,0.3408792]
[1746382407078,0.686201,95380.0,95379.0,0.3408792]
[1746382414592,0.686201,95380.0,95379.0,0.0807]
[1746382414789,0.696201,95380.0,95379.0,0.2903792]
[1746382422086,0.814201,95380.0,95379.0,0.2903792]
[1746382424789,0.89432852,95380.0,95379.0,0.2903792]
[1746382428192,0.814201,95380.0,95379.0,0.2903792]
[1746382429290,0.453401,95380.0,95379.0,0.2903792]
[1746382429493,0.814201,95380.0,95379.0,0.2903792]
[1746382432097,0.77632852,95380.0,95379.0,0.2903792]
[1746382432291,0.76632852,95380.0,95379.0,0.2403792]
[1746382432596,0.77632852,95380.0,95379.0,0.2603792]
[1746382435500,0.696201,95380.0,95379.0,0.2603792]
[1746382437904,0.686201,95380.0,95379.0,0.3303792]
[1746382438602,0.686201,95380.0,95379.0,0.3203792]
[1746382443104,0.804201,95380.0,95379.0,0.3203792]
[1746382444102,0.686201,95380.0,95379.0,0.3203792]
[1746382444804,0.686201,95380.0,95379.0,0.08]
[1746382445707,0.686201,95380.0,95379.0,0.2896792]
[1746382448794,0.686201,95380.0,95379.0,0.3204792]
[1746382459909,0.686201,95380.0,95379.0,0.2896792]
[1746382463715,0.686201,95380.0,95379.0,0.2296792]
[1746382471416,0.76632852,95380.0,95379.0,0.2296792]
[1746382475423,0.686201,95380.0,95379.0,0.2296792]
[1746382482532,0.76632852,95380.0,95379.0,0.2296792]
[1746382484136,0.76632852,95380.0,95379.0,0.02]
[1746382485135,0.88432852,95380.0,95379.0,0.02]
[1746382492234,0.89432852,95380.0,95379.0,0.02]
[1746382493443,0.88432852,95380.0,95379.0,0.06]
[1746382496044,0.88432852,95380.0,95379.0,0.2696792]
[1746382496444,0.88432852,95380.0,95379.0,0.2296792]
[1746382497145,0.76632852,95380.0,95379.0,0.2296792]
[1746382498239,0.88432852,95380.0,95379.0,0.2596792]
[1746382498538,0.88432852,95380.0,95379.0,0.2796792]
[1746382499047,0.88432852,95380.0,95379.0,0.2596792]
[1746382499245,0.76632852,95380.0,95379.0,0.2596792]
[1746382500753,0.76632852,95380.0,95379.0,0.2922792]
[1746382502043,0.88432852,95380.0,95379.0,0.2922792]
[1746382503146,0.76632852,95380.0,95379.0,0.2922792]
[1746382506046,0.40552852,95380.0,95379.0,0.2922792]
[1746382506249,0.76632852,95380.0,95379.0,0.2922792]
[1746382508551,0.40552852,95380.0,95379.0,0.2922792]
[1746382508751,0.40552852,95380.0,95379.0,0.2622792]
[1746382511552,0.325401,95380.0,95379.0,0.2622792]
[1746382515440,0.0633,95380.0,95379.0,0.2622792]
[1746382515646,0.003,95380.0,95379.0,0.9371232]
[1746382515952,0.003,95380.0,95379.0,1.2971232]
[1746382516253,0.003,95380.0,95379.0,1.21055913]
[1746382520558,0.003,95380.0,95379.0,1.57135913]
[1746382522365,0.003,95380.0,95379.0,1.46651513]
[1746382522661,0.003,95380.0,95379.0,1.57135913]
[1746382523052,0.003,95380.0,95379.0,1.5259232]
[1746382524658,0.003,95380.0,95379.0,1.1651232]
[1746382524857,0.003,95380.0,95379.0,1.5259232]
[1746382528962,0.003,95380.0,95379.0,1.4210792]
[1746382529170,0.003,95380.0,95379.0,1.5259232]
[1746382531470,0.003,95380.0,95379.0,1.1651232]
[1746382531657,0.003,95380.0,95379.0,1.5259232]
[1746382532064,0.003,95380.0,95379.0,1.4210792]
[1746382532564,0.003,95380.0,95379.0,1.0602792]
[1746382532863,0.003,95380.0,95379.0,1.4210792]
[1746382536465,0.003,95380.0,95379.0,1.0602792]
[1746382536669,0.003,95380.0,95379.0,1.4210792]
[1746382539668,0.003,95380.0,95379.0,1.46642901]
[1746382541472,0.0341,95380.0,95379.0,1.46642901]
[1746382542770,0.0341,95380.0,95379.0,1.4210792]
[1746382544177,0.0341,95380.0,95379.0,1.46644304]
[1746382545270,0.0341,95380.0,95379.0,1.4210792]
[1746382546270,0.0341,95380.0,95379.0,1.46645295]
[1746382553367,0.0341,95380.0,95379.0,1.10565295]
[1746382553572,0.0341,95380.0,95379.0,1.46645295]
[1746382554073,0.0341,95380.0,95379.0,1.34845295]
[1746382555275,0.0341,95380.0,95379.0,1.46645295]
[1746382556075,0.0341,95380.0,95379.0,1.34845295]
[1746382557080,0.08012752,95396.0,95395.0,0.2096441]
[1746382557269,0.08012752,95396.0,95395.0,1.39933785]
[1746382557875,0.08012752,95396.0,95395.0,1.43233785]
[1746382558275,0.08012752,95396.0,95395.0,1.58093785]
[1746382558877,0.08412752,95396.0,95395.0,1.58093785]
[1746382559373,0.08812752,95396.0,95395.0,1.58093785]
[1746382559578,0.00400001,95396.0,95395.0,1.58093785]
[1746382560078,0.00400001,95396.0,95395.0,1.59148632]
[1746382560774,0.00100001,95396.0,95395.0,1.49736632]
[1746382560981,0.22064191,95396.0,95395.0,0.268]
[1746382561172,0.2620802,95388.0,95380.0,0.151201]
[1746382561369,0.2096638,95386.0,95385.0,0.2096638]
[1746382561571,0.2096682,95384.0,95383.0,0.42318858]
[1746382561778,0.2096682,95384.0,95383.0,0.63670908]
[1746382561981,0.2096682,95384.0,95383.0,1.09670908]
[1746382562189,0.3276682,95384.0,95383.0,1.09670908]
[1746382562483,0.3256682,95384.0,95383.0,1.09670908]
[1746382562783,0.3256682,95384.0,95383.0,0.63770908]
[1746382563085,0.3256682,95384.0,95383.0,1.09770908]
[1746382563278,0.3266682,95384.0,95383.0,1.09670908]
[1746382563479,0.3296682,95384.0,95383.0,1.09670908]
[1746382563881,0.3296682,95384.0,95383.0,1.10670908]
[1746382564388,0.3296682,95384.0,95383.0,0.8931904]
[1746382564987,0.3306682,95384.0,95383.0,0.8931904]
[1746382565286,0.3276682,95384.0,95383.0,0.8931904]
[1746382565588,0.3306682,95384.0,95383.0,0.8931904]
[1746382566578,0.3296682,95384.0,95383.0,0.8931904]
[1746382566989,0.3276682,95384.0,95383.0,0.8931904]
[1746382567178,0.3306682,95384.0,95383.0,0.8931904]
[1746382567575,0.123,95384.0,95383.0,0.8931904]
[1746382567986,0.032,95393.0,95392.0,0.2096507]
[1746382568180,0.032,95393.0,95392.0,1.4004507]
[1746382568583,0.032,95393.0,95392.0,1.4640507]
[1746382569190,0.034,95393.0,95392.0,1.5820507]
[1746382569589,0.10680738,95404.0,95403.0,0.2096265]
[1746382569780,0.10680738,95404.0,95403.0,1.3839465]
[1746382570187,0.10680738,95404.0,95403.0,1.5019465]
[1746382570689,0.033,95413.0,95412.0,0.2096067]
[1746382570990,0.033,95413.0,95412.0,0.8996067]
[1746382571287,0.0635,95413.0,95412.0,0.8996067]
[1746382572389,0.0685,95413.0,95412.0,0.8996067]
[1746382572585,0.038,95413.0,95412.0,1.2604067]
[1746382572790,0.038,95413.0,95412.0,1.29886958]
[1746382572988,0.005,95413.0,95412.0,1.29886958]
[1746382573195,0.10673264,95424.0,95423.0,0.2095825]
[1746382573383,0.10673264,95424.0,95423.0,0.9431025]
[1746382574798,0.11273264,95424.0,95423.0,0.9441025]
[1746382575095,0.11373264,95424.0,95423.0,0.9441025]
[1746382575991,0.007,95424.0,95423.0,0.9441025]
[1746382579692,0.007,95424.0,95423.0,1.3049025]
[1746382586497,0.34968538,95463.0,95423.0,1.3049025]
[1746382586498,0.0328,95441.0,95427.0,0.052393]
[1746382586702,0.0308,95442.0,95435.0,0.2095562]
[1746382586902,0.0615,95442.0,95435.0,0.2095562]
[1746382587202,0.0615,95442.0,95435.0,0.9395562]
[1746382587699,0.007,95436.0,95435.0,1.0044562]
[1746382588898,0.009,95436.0,95435.0,1.0044562]
[1746382590002,0.3608,95456.0,95453.0,0.2095167]
[1746382590191,0.03,95455.0,95453.0,0.3795167]
[1746382590590,0.2423145,95454.0,95453.0,0.3795167]
[1746382591197,0.3603145,95454.0,95453.0,0.3795167]
[1746382591505,0.3925145,95454.0,95453.0,0.3795167]
[1746382592193,0.3925145,95454.0,95453.0,0.3815167]
[1746382594603,0.3925145,95454.0,95453.0,0.3415167]
[1746382598406,0.183,95454.0,95453.0,0.3415167]
[1746382598606,0.3925145,95454.0,95453.0,0.3415167]
[1746382599299,0.3925145,95454.0,95453.0,0.3717167]
[1746382602406,0.3925145,95454.0,95453.0,0.1622]
[1746382602608,0.3925145,95454.0,95453.0,0.3717167]
[1746382605509,0.3925145,95454.0,95453.0,0.4017167]
[1746382606404,0.3925145,95454.0,95453.0,0.3717167]
[1746382606605,0.3925145,95454.0,95453.0,0.4017167]
[1746382607417,0.3925145,95454.0,95453.0,0.3717167]
[1746382607713,0.3925145,95454.0,95453.0,0.3917167]
[1746382608615,0.3597145,95454.0,95453.0,0.3917167]
[1746382611811,0.118,95454.0,95453.0,0.8517167]
[1746382612020,0.50680748,95463.0,95462.0,0.2094969]
[1746382612213,0.66680748,95463.0,95462.0,0.3394969]
[1746382612815,0.72970748,95463.0,95462.0,0.4003969]
[1746382613014,0.4323961,95463.0,95462.0,0.4003969]
[1746382613211,0.1503,95463.0,95462.0,0.4003969]
[1746382613404,0.3597947,95463.0,95462.0,0.6503969]
[1746382614207,0.2417947,95463.0,95462.0,0.6503969]
[1746382614807,0.0323,95463.0,95462.0,0.6503969]
[1746382615010,0.0015,95465.0,95464.0,0.2094925]
[1746382615211,0.1195,95465.0,95464.0,0.8794925]
[1746382619538,0.1195,95465.0,95464.0,0.21]
[1746382619727,0.2095298,95447.0,95440.0,0.15997573]
[1746382620039,0.2095277,95448.0,95447.0,0.0319]
[1746382620326,0.3265277,95448.0,95447.0,0.3914298]
[1746382621129,0.1833,95448.0,95447.0,0.3954298]
[1746382621433,0.118,95448.0,95447.0,0.4682298]
[1746382621823,0.118,95448.0,95447.0,0.9282298]
[1746382622134,0.209517,95453.0,95452.0,0.2095189]
[1746382622329,0.209517,95453.0,95452.0,0.8095189]
[1746382622531,0.241517,95453.0,95452.0,0.8095189]
[1746382623034,0.241517,95453.0,95452.0,0.8416189]
[1746382623236,0.359517,95453.0,95452.0,0.8416189]
[1746382623628,0.359517,95453.0,95452.0,0.8736189]
[1746382624434,0.359517,95453.0,95452.0,0.8436189]
[1746382625337,0.359517,95453.0,95452.0,0.8636189]
[1746382625733,0.359517,95453.0,95452.0,0.8436189]
[1746382626038,0.359517,95453.0,95452.0,0.3836189]
[1746382630941,0.359517,95453.0,95452.0,0.8436189]
[1746382635438,0.359517,95453.0,95452.0,0.3836189]
[1746382635635,0.359517,95453.0,95452.0,0.3515189]
[1746382639035,0.359517,95453.0,95452.0,0.4150389]
[1746382639943,0.118,95453.0,95452.0,0.7350389]
[1746382640146,0.118,95453.0,95452.0,0.7658389]
[1746382642239,0.2095151,95454.0,95453.0,0.2095167]
[1746382642546,0.2095151,95454.0,95453.0,0.9221167]
[1746382643450,0.2095151,95454.0,95453.0,0.9241167]
[1746382644043,0.3275151,95454.0,95453.0,0.9241167]
[1746382644249,0.3898151,95454.0,95453.0,0.9241167]
[1746382648556,0.1803,95454.0,95453.0,0.9241167]
[1746382649351,0.118,95454.0,95453.0,0.9241167]
[1746382650047,0.2095022,95460.0,95453.0,0.7146]
[1746382650348,0.2095022,95460.0,95459.0,0.2095035]
[1746382650546,0.2095022,95460.0,95459.0,0.8495035]
[1746382651047,0.3275022,95460.0,95459.0,0.8495035]
[1746382651252,0.3275022,95460.0,95459.0,0.8827035]
[1746382652153,0.118,95460.0,95459.0,0.8827035]
[1746382652351,0.118,95460.0,95459.0,1.2744035]
[1746382652746,0.118,95460.0,95459.0,0.9136035]
[1746382653248,0.118,95460.0,95459.0,0.9146035]
[1746382653642,0.1509,95460.0,95459.0,0.9146035]
[1746382653845,0.1509,95460.0,95459.0,0.9136035]
[1746382654038,0.1509,95460.0,95459.0,0.9146035]
[1746382654250,0.0329,95460.0,95459.0,0.9146035]
[1746382654953,0.2424013,95460.0,95459.0,0.9146035]
[1746382655153,0.3604013,95460.0,95459.0,0.9146035]
[1746382655555,0.1509,95460.0,95459.0,0.9146035]
[1746382660259,0.118,95460.0,95459.0,0.9146035]
[1746382670366,0.118,95460.0,95459.0,0.8837035]
[1746382672767,0.118,95460.0,95459.0,0.9150035]
[1746382674956,0.118,95460.0,95459.0,0.8837035]
[1746382676164,0.1824,95460.0,95459.0,0.8837035]
[1746382677968,0.118,95460.0,95459.0,0.8837035]
[1746382678268,0.0015,95465.0,95464.0,0.2094925]
[1746382678461,0.0659,95465.0,95464.0,0.7994925]
[1746382678868,0.0659,95465.0,95464.0,0.8394925]
[1746382679071,0.1839,95465.0,95464.0,0.9007925]
[1746382679460,0.1849,95465.0,95464.0,0.9007925]
[1746382680971,0.1839,95465.0,95464.0,0.9017925]
[1746382681972,0.1839,95465.0,95464.0,0.3709925]
[1746382682360,0.1839,95465.0,95464.0,0.4109925]
[1746382682663,0.3933903,95465.0,95464.0,0.4109925]
[1746382685173,0.3933903,95465.0,95464.0,0.4744325]
[1746382687871,0.3933903,95465.0,95464.0,0.19444]
[1746382688077,0.3933903,95465.0,95464.0,0.001]
[1746382689071,0.3933903,95465.0,95464.0,0.3504925]
[1746382691373,0.7541903,95465.0,95464.0,0.001]
[1746382692378,0.7541903,95465.0,95464.0,0.2104925]
[1746382696178,0.7541903,95465.0,95464.0,0.001]
[1746382699278,0.3933903,95465.0,95464.0,0.001]
[1746382699480,0.7541903,95465.0,95464.0,0.001]
[1746382701481,0.3933903,95465.0,95464.0,0.001]
[1746382701781,0.7541903,95465.0,95464.0,0.001]
[1746382711082,0.7541903,95465.0,95464.0,0.0337]
[1746382712483,0.3933903,95465.0,95464.0,0.0337]
[1746382712686,0.7541903,95465.0,95464.0,0.0337]
[1746382714387,0.7541903,95465.0,95464.0,0.2431925]
[1746382714576,0.6897903,95465.0,95464.0,0.2431925]
[1746382722790,0.7225903,95465.0,95464.0,0.2431925]
[1746382724001,0.7225903,95465.0,95464.0,0.0337]
[1746382725885,0.3617903,95465.0,95464.0,0.0337]
[1746382726089,0.7225903,95465.0,95464.0,0.0337]
[1746382729091,0.3617903,95465.0,95464.0,0.0337]
[1746382729290,0.7225903,95465.0,95464.0,0.0337]
[1746382733997,0.3617903,95465.0,95464.0,0.0337]
[1746382734201,0.7225903,95465.0,95464.0,0.0337]
[1746382735302,0.3617903,95465.0,95464.0,0.0337]
[1746382735601,0.7225903,95465.0,95464.0,0.0337]
[1746382736106,0.7225903,95465.0,95464.0,0.2431925]
[1746382739105,0.7225903,95465.0,95464.0,0.0337]
[1746382743302,0.3617903,95465.0,95464.0,0.0337]
[1746382743502,0.7225903,95465.0,95464.0,0.0337]
[1746382748308,0.7225903,95465.0,95464.0,0.2431925]
[1746382749505,0.7225903,95465.0,95464.0,0.0337]
[1746382753807,0.867852,95465.0,95429.0,0.3608]
[1746382754106,0.5703408,95442.0,95441.0,0.52109043]
[1746382754610,0.2095408,95442.0,95441.0,0.56109043]
[1746382755203,0.2095408,95442.0,95441.0,0.52109043]
[1746382755711,0.2095408,95442.0,95441.0,0.59419043]
[1746382755911,0.2095408,95442.0,95441.0,0.59919043]
[1746382756211,0.2095408,95442.0,95441.0,0.59719043]
[1746382756608,0.2095408,95442.0,95441.0,0.59219043]
[1746382756810,0.2095408,95442.0,95441.0,0.59519043]
[1746382757011,0.2095408,95442.0,95441.0,0.62599043]
[1746382757713,0.0523831,95446.0,95445.0,0.2619129]
[1746382757913,0.0523831,95446.0,95445.0,0.4719129]
[1746382758514,0.0523831,95446.0,95445.0,0.5332129]
[1746382758714,0.2619239,95446.0,95445.0,0.5332129]
[1746382759117,0.2619239,95446.0,95445.0,0.5352129]
[1746382759315,0.2619239,95446.0,95445.0,0.5362129]
[1746382759618,0.31633316,95451.0,95450.0,0.2095233]
[1746382759818,0.10680476,95451.0,95450.0,0.8129233]
[1746382760316,0.31632586,95451.0,95450.0,0.9309233]
[1746382760515,0.31632586,95451.0,95450.0,0.9922233]
[1746382760902,0.31632586,95451.0,95450.0,0.7837]
[1746382761617,0.31632586,95451.0,95450.0,0.9932233]
[1746382763521,0.2095211,95451.0,95450.0,0.9932233]
[1746382764414,0.2095211,95451.0,95450.0,1.3540233]
[1746382764718,0.2095129,95455.0,95454.0,0.2618883]
[1746382764918,0.2095129,95455.0,95454.0,0.9018883]
[1746382765620,0.2095129,95455.0,95454.0,0.9344883]
[1746382765814,0.2095129,95455.0,95454.0,0.9650883]
[1746382767331,0.3213509,95457.0,95456.0,0.2095101]
[1746382767624,0.24131,95457.0,95456.0,0.8295101]
[1746382767825,0.24131,95457.0,95456.0,0.8929101]
[1746382768825,0.24131,95457.0,95456.0,0.4329101]
[1746382769423,0.24131,95457.0,95456.0,0.8929101]
[1746382769621,0.0800409,95460.0,95459.0,0.2095035]
[1746382769828,0.0800409,95460.0,95459.0,0.8895035]
[1746382770119,0.0800409,95460.0,95459.0,1.2503035]
[1746382771428,0.0800409,95462.0,95461.0,0.2094991]
[1746382771722,0.0800409,95462.0,95461.0,0.8594991]
[1746382772325,0.0800409,95462.0,95461.0,0.9256991]
[1746382772519,0.0800409,95462.0,95461.0,0.9266991]
[1746382775025,0.2895378,95462.0,95461.0,0.9266991]
[1746382775227,0.2094969,95462.0,95461.0,0.9266991]
[1746382775816,0.2426969,95462.0,95461.0,0.4666991]
[1746382776012,0.2426969,95462.0,95461.0,0.9266991]
[1746382786736,0.2426969,95462.0,95461.0,0.8936991]
[1746382788037,0.2426969,95462.0,95461.0,0.8604991]
[1746382788328,0.2754969,95462.0,95461.0,0.601]
[1746382788629,0.6362969,95462.0,95461.0,0.161]
[1746382788929,0.6362969,95462.0,95461.0,0.001]
[1746382789233,0.7542969,95462.0,95461.0,0.001]
[1746382790230,0.2095277,95448.0,95447.0,0.4242]
[1746382790720,0.2095277,95448.0,95447.0,0.0634]
[1746382791123,0.3904277,95448.0,95447.0,0.0634]
[1746382791328,0.3904277,95448.0,95447.0,0.0674]
[1746382791728,0.3904277,95448.0,95447.0,0.0694]
[1746382793132,0.40091194,95448.0,95447.0,0.006]
[1746382795333,0.40191194,95448.0,95447.0,0.002]
[1746382796634,0.2095408,95442.0,95441.0,0.0015717]
[1746382796836,0.5703408,95442.0,95441.0,0.0115717]
[1746382797236,0.6883408,95442.0,95441.0,0.0115717]
[1746382797536,0.7514408,95442.0,95441.0,0.0115717]
[1746382799038,0.7514408,95442.0,95441.0,0.0015717]
[1746382801034,0.3906408,95442.0,95441.0,0.1115717]
[1746382801238,0.3580408,95442.0,95441.0,0.6611147]
[1746382802235,0.2400408,95442.0,95441.0,0.7269147]
[1746382802437,0.2095408,95442.0,95441.0,0.7269147]
[1746382802739,0.2095361,95445.0,95444.0,0.2619157]
[1746382803044,0.2095361,95445.0,95444.0,1.0253157]
[1746382804727,0.2405361,95445.0,95444.0,1.0253157]
[1746382805543,0.0800409,95446.0,95445.0,0.2095342]
[1746382805841,0.0800409,95446.0,95445.0,0.9529342]
[1746382806734,0.2895729,95446.0,95445.0,0.9529342]
[1746382807344,0.209532,95446.0,95445.0,0.9529342]
[1746382809540,0.2095287,95448.0,95447.0,0.2095277]
[1746382809741,0.2410255,95449.0,95448.0,0.2095277]
[1746382809944,0.2410255,95449.0,95448.0,0.9000277]
[1746382810243,0.2410255,95449.0,95448.0,0.9300277]
[1746382811845,0.052377,95457.0,95452.0,0.0523792]
[1746382812041,0.2419102,95457.0,95456.0,0.2095079]
[1746382812344,0.2419102,95457.0,95456.0,0.3695079]
[1746382812746,0.2419102,95457.0,95456.0,0.8295079]
[1746382813747,0.2429102,95457.0,95456.0,0.8295079]
[1746382814149,0.3609102,95457.0,95456.0,0.8295079]
[1746382816249,0.2429102,95457.0,95456.0,0.8295079]
[1746382817147,0.3609102,95457.0,95456.0,0.8295079]
[1746382818739,0.3609102,95457.0,95456.0,0.3695079]
[1746382819345,0.3609102,95457.0,95456.0,0.4022079]
[1746382822241,0.3609102,95457.0,95456.0,0.8622079]
[1746382824055,0.3609102,95457.0,95456.0,0.9256079]
[1746382824354,0.2429102,95457.0,95456.0,0.9256079]
[1746382825155,0.3609102,95457.0,95456.0,0.9256079]
[1746382826151,0.2429102,95457.0,95456.0,0.9256079]
[1746382827051,0.3609102,95457.0,95456.0,0.9256079]
[1746382828654,0.3609102,95457.0,95456.0,0.8929079]
[1746382835461,0.3609102,95457.0,95456.0,0.9259079]
[1746382836657,0.3609102,95457.0,95456.0,0.9659079]
[1746382837763,0.3609102,95457.0,95456.0,0.9259079]
[1746382839258,0.2429102,95457.0,95456.0,0.9259079]
[1746382840166,0.3609102,95457.0,95456.0,0.9259079]
[1746382841053,0.3609102,95457.0,95456.0,0.9559079]
[1746382845173,0.2429102,95457.0,95456.0,0.9559079]
[1746382849089,0.3609102,95457.0,95456.0,0.9559079]
[1746382851490,0.3609102,95457.0,95456.0,0.9259079]
[1746382851881,0.3609102,95457.0,95456.0,0.9559079]
[1746382852190,0.3609102,95457.0,95456.0,0.9259079]
[1746382852696,0.3609102,95457.0,95456.0,0.9559079]
[1746382853692,0.3609102,95457.0,95456.0,0.9259079]
[1746382855192,0.2429102,95457.0,95456.0,0.9259079]
[1746382855491,0.2429102,95457.0,95456.0,0.9459079]
[1746382858188,0.3609102,95457.0,95456.0,0.9459079]
[1746382859100,0.2429102,95457.0,95456.0,0.9459079]
[1746382860102,0.3609102,95457.0,95456.0,0.9459079]
[1746382861403,0.3609102,95457.0,95456.0,0.7364]
[1746382861700,0.3609102,95457.0,95456.0,0.9459079]
[1746382862700,0.3609102,95457.0,95456.0,0.9259079]
[1746382863201,0.3609102,95457.0,95456.0,0.4659079]
[1746382864801,0.3609102,95457.0,95456.0,0.4959079]
[1746382865103,0.2429102,95457.0,95456.0,0.4959079]
[1746382865905,0.2429102,95457.0,95456.0,0.9559079]
[1746382867204,0.3609102,95457.0,95456.0,0.9559079]
[1746382867801,0.3915102,95457.0,95456.0,0.9559079]
[1746382868305,0.3905102,95457.0,95456.0,0.9559079]
[1746382869107,0.2725102,95457.0,95456.0,0.9559079]
[1746382869992,0.10680476,95458.0,95457.0,0.2095079]
[1746382870204,0.10680476,95458.0,95457.0,0.8925079]
[1746382870506,0.2095053,95459.0,95458.0,0.2095057]
[1746382870705,0.2095053,95459.0,95458.0,0.9404057]
[1746382870903,0.2423053,95459.0,95458.0,0.9404057]
[1746382871908,0.2433053,95459.0,95458.0,0.4804057]
[1746382872109,0.2734053,95459.0,95458.0,0.4804057]
[1746382873306,0.2724053,95459.0,95458.0,0.4804057]
[1746382874004,0.2724053,95459.0,95458.0,0.4498057]
[1746382874402,0.35252625,95459.0,95458.0,0.4498057]
[1746382874602,0.35252625,95459.0,95458.0,0.3998057]
[1746382874916,0.35252625,95459.0,95458.0,0.4298057]
[1746382877807,0.11292095,95459.0,95458.0,0.8898057]
[1746382878907,0.08012095,95459.0,95458.0,0.8898057]
[1746382879105,0.08012095,95459.0,95458.0,1.2325617]
[1746382881313,0.08012095,95459.0,95458.0,1.1145617]
[1746382883514,0.0648,95465.0,95464.0,0.2094925]
[1746382883714,0.0648,95465.0,95464.0,1.2502925]
[1746382884410,0.0648,95465.0,95464.0,1.3124925]
[1746382886012,0.0658,95465.0,95464.0,1.3124925]
[1746382889411,0.0648,95465.0,95464.0,1.3124925]
[1746382889611,0.0015,95465.0,95464.0,1.3124925]
[1746382890911,0.0317,95465.0,95464.0,1.3124925]
[1746382894322,0.0632,95465.0,95464.0,1.3124925]
[1746382895220,0.1812,95465.0,95464.0,1.3124925]
[1746382895719,0.3906903,95465.0,95464.0,1.3124925]
[1746382895920,0.3906903,95465.0,95464.0,1.2804925]
[1746382896513,0.3906903,95465.0,95464.0,0.5808]
[1746382896713,0.4225903,95465.0,95464.0,0.57412]
[1746382897221,0.4225903,95465.0,95464.0,0.62412]
[1746382897418,0.4225903,95465.0,95464.0,0.57412]
[1746382897821,0.7833903,95465.0,95464.0,0.15]
[1746382898025,0.2095013,95460.0,95459.0,0.06332]
[1746382898323,0.2095013,95460.0,95459.0,0.67332]
[1746382898628,0.2095013,95460.0,95459.0,0.8828227]
[1746382898813,0.21980786,95460.0,95459.0,0.8828227]
[1746382899009,0.28230786,95460.0,95459.0,0.8828227]
[1746382899222,0.40030786,95460.0,95459.0,0.8838227]
[1746382900216,0.3900013,95460.0,95459.0,0.8838227]
[1746382900410,0.3900013,95460.0,95459.0,0.21432]
[1746382900916,0.40036033,95460.0,95459.0,0.4238235]
[1746382901425,0.3900013,95460.0,95459.0,0.4238235]
[1746382904137,0.3900013,95460.0,95459.0,0.4538235]
[1746382904729,0.3900013,95460.0,95459.0,0.4238235]
[1746382908125,0.3900013,95460.0,95459.0,0.4838235]
[1746382908527,0.3900013,95460.0,95459.0,0.4238235]
[1746382913226,0.3900013,95460.0,95459.0,0.4538235]
[1746382913836,0.3900013,95460.0,95459.0,0.9138235]
[1746382914027,0.3900013,95460.0,95459.0,0.9468235]
[1746382914832,0.118,95460.0,95459.0,0.9138235]
[1746382915030,0.08162095,95465.0,95464.0,0.2094925]
[1746382915225,0.08162095,95465.0,95464.0,0.9394925]
[1746382916133,0.08162095,95465.0,95464.0,1.1514925]